Cogmind - Beta 13 @@@ ROGUE MODE // 2024.04.09 @ 19:55:08 Player: DURANDAL Result: Destroyed by as-65043 with Assembled F-torch Performance ------------- Evolutions (0) 0 Regions Visited (2) 400 Robots Destroyed (11) 55 Value Destroyed (93) 93 Prototype IDs (0) 0 Alien Tech Used (0) 0 Bonus (60) 60 TOTAL SCORE: 608 Bonus ------- Follower Combat Kills 60 Cogmind --------- Core Integrity 0/250 Matter 293/300 Energy 100/100 System Corruption 11% Temperature Hot (210) Movement Core (1350) Ox26 Location -10/Mines Parts ------- > --- POWER (1) -------- (None) > --- PROPULSION (2) --- (None) > --- UTILITY (2) ------ Huge Storage Unit > --- WEAPON (2) ------- Light Assault Rifle > --- INVENTORY (25) --- Light Treads Aluminum Leg Small Storage Unit EM Pulse Gun EM Pulse Gun EM Pulse Gun Light Cannon Light Cannon Grenade Launcher Mining Laser Peak State ------------ > --- POWER ------------ Ion Engine > --- PROPULSION ------- Light Treads Light Treads > --- UTILITY ---------- Huge Storage Unit Targeting Computer > --- WEAPON ----------- Light Assault Rifle Light Assault Rifle > --- INVENTORY -------- Light Ion Engine Small Storage Unit EM Pulse Gun EM Pulse Gun EM Pulse Gun Light Assault Rifle Light Assault Rifle Light Cannon Light Cannon Mining Laser [Rating: 8] Favorites ----------- Power Ion Engine Engine Ion Engine Propulsion Light Treads Treads Light Treads Leg Aluminum Leg Utility Huge Storage Unit Storage Huge Storage Unit Processor Targeting Computer Weapon Light Assault Rifle Energy Gun EM Pulse Gun Ballistic Gun Light Assault Rifle Build | -11 -10 -10 ------- Run | Yrd Mat Min Slots Evolved . | . . . Power . | . . . Propulsion . | . . . Utility . | . . . Weapon . | . . . Parts Attached 18 | 7 6 5 Power 5 | 2 2 1 Engine 5 | 2 2 1 Core . | . . . Reactor . | . . . Propulsion 4 | 2 . 2 Treads 2 | 2 . . Leg 2 | . . 2 Wheel . | . . . Hover . | . . . Flight . | . . . Utility 3 | 1 2 . Device . | . . . Storage 2 | 1 1 . Processor 1 | . 1 . Hackware . | . . . Protection . | . . . Artifact . | . . . Weapon 6 | 2 2 2 Energy Gun 2 | 2 . . Energy Cannon . | . . . Ballistic Gun 4 | . 2 2 Ballistic Cannon . | . . . Launcher . | . . . Special Weapon . | . . . Impact Weapon . | . . . Slashing Weapon . | . . . Piercing Weapon . | . . . Special Melee Weapon . | . . . Unidentified Prototypes . | . . . Parts Lost 10 | . 1 9 Power 3 | . 1 2 Propulsion 3 | . . 3 Utility 1 | . . 1 Weapon 3 | . . 3 Highest Loss Streak 4 | . 1 4 To Critical Strikes . | . . . Average Slot Usage (%) 84 | . 92 60 Engine 12 | . 13 9 Treads 24 | . 28 14 Storage 14 | . 14 14 Processor 6 | . 7 1 Energy Gun 1 | . 2 . Ballistic Gun 24 | . 25 19 Naked Turns . | . . . Heaviest Build 87 | 14 87 85 Greatest Support 40 | 40 40 40 Greatest Overweight (x) 4 | . 2 4 Average Overweight (x) 1 | . 1 3 Largest Inventory Capacity 25 | 8 25 25 Average Capacity 21 | 7 21 25 Most Carried 11 | 3 11 11 Average Carried 8 | 1 8 10 Final Capacity 25 | 8 25 25 Final Carried 11 | 2 11 10 Class Distribution -------------------- 100% | Mutant Dominant Class ---------------- Mutant | -10/Materials Mutant | -10/Mines Resources | -11 -10 -10 ----------- Run | Yrd Mat Min Matter Collected 442 | 194 179 69 Remotely . | . . . Salvage Created 229 | . 210 19 Parts 19 | . 18 1 Haulers Intercepted 1 | . 1 . Recyclers Shooed 3 | . 2 1 Parts Field Recycled . | . . . Retrieved Matter . | . . . Parts Self-Destructed . | . . . Prevented . | . . . Kills | -11 -10 -10 ------- Run | Yrd Mat Min Combat Hostiles Destroyed 11 | . 9 2 Guns 11 | . 9 2 Classes Destroyed 4 | . 2 2 Worker 1 | . . 1 Hauler 1 | . 1 . Swarmer 9 | . 9 . Assembled 2 | . . 2 Best Kill Streak 3 | . 3 1 Combat Bots Only 3 | . 3 1 Max Kills in Single Turn 1 | . 1 1 Gunslinging . | . . . Exploded . | . . . Melee . | . . . Uniques/NPCs Destroyed . | . . . Combat | -11 -10 -10 -------- Run | Yrd Mat Min Hostile Shots Fired 115 | . 73 42 Missed 26 | . 16 10 Damage Taken 1084 | . 460 624 Core 250 | . 76 174 Absorbed by Shields . | . . . Core Remaining (%) 100 | 100 . . Volleys Fired 64 | . 33 31 Largest 2 | . 2 2 Hottest 80 | . 80 40 Shots Fired 102 | . 66 36 Gun 102 | . 66 36 Cannon . | . . . Launcher . | . . . Special . | . . . Kinetic 94 | . 58 36 Thermal . | . . . Explosive . | . . . Electromagnetic 8 | . 8 . Robot Hit Streak 7 | . 7 4 Robot Miss Streak 6 | . 5 6 Penetration Max . | . . . Secondary Targets 1 | . 1 . Max Gunslinging Chain 1 | . 1 . Shots Hit Robots 52 | . 38 14 Core Hits 21 | . 13 8 Critical Kills . | . . . Critical Parts Destroyed . | . . . Critical Strikes . | . . . Melee Attacks . | . . . Impact . | . . . Slashing . | . . . Piercing . | . . . Sneak Attacks . | . . . Combat Hostiles . | . . . Follow-up Attacks . | . . . Damage Inflicted 455 | . 345 110 Guns 449 | . 345 104 Cannons . | . . . Explosions . | . . . Melee . | . . . Ramming 6 | . . 6 Kinetic 397 | . 293 104 Thermal . | . . . Explosive . | . . . Electromagnetic 52 | . 52 . Impact . | . . . Slashing . | . . . Piercing . | . . . Highest Corruption 11 | . . 11 Average Corruption 9 | . . 9 Corruption Purged . | . . . Corruption Blocked . | . . . Effects 9 | . . 9 Message Errors 1 | . . 1 Matter Fused 2 | . . 2 Heat Flow Errors 2 | . . 2 Energy Discharges 1 | . . 1 Data Loss (minor) 2 | . . 2 Data Loss (major) 1 | . . 1 Overload Shots . | . . . Overflow Damage . | . . . Projectiles . | . . . Explosions . | . . . Melee . | . . . Knockbacks 1 | . . 1 Impact 1 | . . 1 Kinetic . | . . . Secondary . | . . . Self-Inflicted Damage . | . . . Shots . | . . . Rammed 1 | . . 1 Targets Rammed 2 | . . 2 Kicked . | . . . Crushed 1 | . . 1 Highest Temperature 235 | . 54 235 Average Temperature 55 | . 25 73 Received Heat Transfer 312 | . . 312 Siege Activations . | . . . Robots Corrupted . | . . . Combat Hostiles . | . . . Parts Fried . | . . . Impact Corruptions . | . . . Robots Melted . | . . . Combat Hostiles . | . . . Parts Melted . | . . . Heat Transferred . | . . . Parts Sabotaged . | . . . Parts Stolen . | . . . Parts Stripped . | . . . Power Chain Reactions . | . . . Alert | -11 -10 -10 ------- Run | Yrd Mat Min Peak Influence 182 | . 182 53 Initial 8 | . . 8 Average 35 | . 44 20 Maximum Alert Level . | . . . Low Security (%) 100 | 100 100 100 Level 1 . | . . . Level 2 . | . . . Level 3 . | . . . Level 4 . | . . . Level 5 . | . . . High Security . | . . . Max Security . | . . . Squads Dispatched . | . . . Investigation . | . . . Extermination . | . . . Reinforcement . | . . . Assault . | . . . Garrison . | . . . Intercept . | . . . Searches Triggered . | . . . Construction Impeded . | . . . Haulers Reinforced . | . . . Active Scanning Responses . | . . . Cargo Convoy Interrupts . | . . . Stealth | -11 -10 -10 --------- Run | Yrd Mat Min Distress Signals . | . . . Communications Jammed . | . . . Distress Signals . | . . . Times Spotted 22 | . 13 9 Peak Tracking Total 5 | . 4 5 Tactical Retreats 2 | . 1 1 Traps | -11 -10 -10 ------- Run | Yrd Mat Min Traps Triggered 1 | . 1 . Indirectly . | . . . Trap Hack Attempts . | . . . Triggered . | . . . Disarmed . | . . . Reprogrammed . | . . . Reused . | . . . Traps Extracted . | . . . Installed . | . . . Triggered . | . . . Machines | -11 -10 -10 ---------- Run | Yrd Mat Min Machines Disabled . | . . . Max in Single Turn . | . . . Machines Repaired . | . . . Machines Dismantled . | . . . Machines Sabotaged . | . . . Overloaded Fab Kills . | . . . Hacking | -11 -10 -10 --------- Run | Yrd Mat Min Machines Accessed 7 | . 7 . Terminals 6 | . 6 . Fabricators . | . . . Repair Stations . | . . . Recycling Units 1 | . 1 . Scanalyzers . | . . . Garrison Access . | . . . Total Hacks 15 | . 15 . Successful 7 | . 7 . Failed 8 | . 8 . Catastrophic . | . . . Database Lockouts . | . . . Manual 9 | . 9 . Terminals 14 | . 14 . Fabricators . | . . . Repair Stations . | . . . Recycling Units 1 | . 1 . Scanalyzers . | . . . Garrison Access . | . . . Terminal Hacks 2 | . 2 . Maintenance Status 1 | . 1 . Hauler Manifests 1 | . 1 . Fabricator Hacks . | . . . Repair Station Hacks . | . . . Recycling Unit Hacks 1 | . 1 . Report Inventory 1 | . 1 . Scanalyzer . | . . . Garrison Access Hacks . | . . . Unauthorized Hacks 4 | . 4 . Terminals 4 | . 4 . Assimilate 3 | . 3 . Operators 1 | . 1 . Fabricators . | . . . Repair Stations . | . . . Recycling Units . | . . . Scanalyzers . | . . . Garrison Access . | . . . Data Cores Recovered . | . . . Used . | . . . Hacking Detections 5 | . 5 . Full Trace Events . | . . . Feedback Events . | . . . Feedback Blocked . | . . . Robot Schematics Acquired . | . . . Robots Built . | . . . Authchips . | . . . Time . | . . . Total Robot Build Rating . | . . . Part Schematics Acquired . | . . . Parts Built . | . . . Authchips . | . . . Time . | . . . Total Part Build Rating . | . . . Parts Repaired . | . . . Time . | . . . Parts Recycled . | . . . Recycled Matter . | . . . Retrieved Matter . | . . . Retrieved Components . | . . . Parts Scanalyzed . | . . . Part Schematics Acquired . | . . . Parts Damaged . | . . . Bothacking | -11 -10 -10 ------------ Run | Yrd Mat Min Used RIF Installer . | . . . Robots Hacked . | . . . Non-combat . | . . . Combat . | . . . Robot Hacks Applied . | . . . Relay Couplers Released . | . . . Fabnet Peak Effective % . | . . . Robots Rewired . | . . . Allies Hacked . | . . . Hacks Repelled . | . . . Allies | -11 -10 -10 -------- Run | Yrd Mat Min Total Allies 1 | . . 1 Largest Group 1 | . . 1 Highest-Rated Group 31 | . . 31 Highest-Rated Ally 31 | . . 31 Total Orders . | . . . Ally Attacks 9 | . . 9 Total Damage 127 | . . 127 Kills 3 | . . 3 Allies Corrupted . | . . . Allies Melted . | . . . Intel | -11 -10 -10 ------- Run | Yrd Mat Min Robot Analysis Total . | . . . Derelict Logs Recovered . | . . . Drone Launches . | . . . Drone Recoveries . | . . . Exploration | -11 -10 -10 ------------- Run | Yrd Mat Min Turns Passed 1615 | 105 1109 401 Spaces Moved 511 | 61 378 72 Core 11 | 11 . . Treads 498 | 50 378 70 Legs 2 | . . 2 Wheels . | . . . Hover . | . . . Flight . | . . . Fastest Speed 50 | 50 160 320 Average Speed 273 | 140 262 446 Slowest Speed 480 | 160 320 480 Overloaded Moves . | . . . Propulsion Burnouts . | . . . Robots Hopped . | . . . Cave-ins Triggered . | . . . Exploration Rate (%) 30 | 4 71 16 Regions Visited 2 Branch Regions 1 Pre-discovered Areas . | . . . Known Exits Taken . | . . . Unknown Exits Taken 2 | 1 1 . Scrap Searched . | . . . Spaces Dug . | . . . Terrain Destroyed . | . . . Melee . | . . . Projectile . | . . . AOE . | . . . Terrain Rammed . | . . . Walls Destroyed . | . . . Machines Disabled . | . . . Actions | -11 -10 -10 --------- Run | Yrd Mat Min Total 637 | 80 441 116 Wait 19 | 5 11 3 Move 509 | 60 377 72 Hop . | . . . Pick Up 24 | 8 13 3 Fast Attach . | . . . Attach 13 | 6 3 4 Detach . | . . . Swap 5 | 1 3 1 Drop 1 | . 1 . Fire 64 | . 33 31 Melee . | . . . Ram . | . . . Kick . | . . . Crush 2 | . . 2 Escape Stasis . | . . . Rewire . | . . . Trap . | . . . Miscellaneous . | . . . Route ------- -11/Scrapyard -10/Materials (discovered 3 exits: [*Mat x2] / [*Min]) -10/Mines History --------- Turn | Location | Event 6 | -11/Scrapyard | Discovered new exit (range 14) 106 | -11/Scrapyard | Entered Materials 315 | -10/Materials | Build established: Mutant 430 | -10/Materials | Discovered new exit (range 10) 643 | -10/Materials | Discovered new exit (range 11) 1011 | -10/Materials | Discovered new exit (range 8) 1215 | -10/Materials | Entered Mines 1216 | -10/Mines | Assembled infested the area 1221 | -10/Mines | Assisted by a Guerilla fighting off Assembled 1241 | -10/Mines | Met a Derelict bent on vengeance 1269 | -10/Mines | Met a Derelict testing a Signal Generator 1296 | -10/Mines | Lost 4 parts (1p1n1u1w) 1472 | -10/Mines | Core integrity fell below 50% 1475 | -10/Mines | System corruption reached 10% 1584 | -10/Mines | Core integrity fell below 20% 1613 | -10/Mines | Lost 4 parts (1p2n1w) 1616 | -10/Mines | Destroyed by as-65043 with Assembled F-torch Last Messages --------------- 01562_ Acquired Aluminum Leg. 01562_ K-01 Serf collects debris. 01563_ as-09397 sneak attacks. 01563_ K-01 Serf destroyed. 01564_ K-01 Serf collects debris. 01566_ as-09397 sneak attacks. 01566_ K-01 Serf destroyed. 01574_ Aluminum Leg destroyed. 01580_ Lgt. Ion Engine destroyed. 01582_ Lgt. Assault Rifle destroyed. 01584_ as-09397 destroyed. 01585_ Acquired 9 matter. 01587_ Acquired 1 matter. 01591_ System corrupted: Component data lost. 01592_ Acquired 1 matter. 01600_ K-01 Serf collects debris. 01601_ Acquired 1 matter. 01603_ K-01 Serf collects debris. 01610_ System corrupted: Heat flow error (+240). 01610_ K-01 Serf collects debris. Map ----- +----------------------------------------------------+ | | | | | | | | | | | | | | | | | | | | | | | ??????????????????????????????????????????????? | | ??????????????????????????????????????????????? | | ??????????????????????????????????????????????? | | ??????????????????????????????????????????????? | | ??????????????????????????????????????????????? | | ??????????????#???????????????????????????????? | | ?????????????? ???????????????????????????????? | | ?????????????# #??????????????????????????????? | | ????#######??# #??????????????????????????????? | | ????# ##?# #??????????????????????????????? | | ????# #?# #??????????????????????????????? | | ?????# #?# #?#######??????????????????????? | | ?????## #?# ### ##?????????????????????? | | ?????## #?# ## #?????????????????????? | | ????## #?#%% % % !@ ##????????????????????? | | ????# ##?# ### r*k*!#????????????????????? | | ????# ## ?#%## # ![%=#????????????????????? | | ????# ##? ##=## ###*%!#????????????????????? | | ????## #??# # # # #?##a%=#???????????????????? | | ?????# #### #%# # #??#=* ??????????????????? | | ????## # #*#####??#= """????????????????? | | ????# % %*#???## """= ??????????????? | | ????# ###### #????# """ ?????????????? | | ????## ## ###### ####?# ?????????????? | | ?????#######??# #?# ##???????????????? | | ??????????????# #?# ##????????????????? | | ??????????????# """" #??# ##?????????????????? | | ??????????????# """" #???###??????????????????? | | ??????????????# """" #????????????????????????? | | ??????????????# * #????????????????????????? | | ??????????????#### ###????????????????????????? | | ?????????????????# ##?????????????????????????? | | ????????????????## ##????????????????????????? | | ????????????????# "####????????????????????? | | ????????????????# * #????????????????????? | | ?????????????# % !% #???????????????????? | | ?????????????# $ "#???????????????????? | | ?????????????# ## ### #"#???????????????????? | | ?????????????# ?# #??###?#???????????????????? | +----------------------------------------------------+ Best States ------------- Heat Dissipation 25 Energy Generation 10 Energy Capacity 250 Matter Stores 300 Matter Capacity 300 Sight Range 16 Terrain Scan Density 10 Evasion (%) 50 Targeting Accuracy 5 Recoil Reduction 2 Item Schematics ----------------- None Robot Schematics ------------------ None Fabricated ------------ Nothing Alien Tech Used ----------------- None Achievements -------------- None Challenges ------------ None Game ------ Seed ImprinterGravitonInjector Manual? 0 Play Time 00:14:26 Cumulative 17.9 hours Start 2024.04.09 @ 19:42:16 End 2024.04.09 @ 19:55:08 Sessions 1 Manual Loads 0 Difficulty Rogue Special Mode None Game No. 31 Rogue 31 Adventurer 0 Explorer 0 Win Type - Total 0 Types 0/0/0/0/0/0/0/0/0 Lore% 19 Gallery% 17 Achievement% 17 Wizard Run 0 Options --------- Layout 1 ASCII 0 Keyboard 0 Movement Numpad Keybinds 0 Fullscreen 1 Font 24/Smallcaps Map View 50x35 Zoom Use 0% Tactical HUD 1 Map Filters NONE Filters NONE Steam 1 RUN: 144de578-22e7-4cd8-92e4-8fed0fba133e